bitfinex-derivatives/quotes_ETHF0:USTF0_20240915
["timestamp","ask_amount","ask_price","bid_price","bid_amount"]
[1726422432603,0.81384,2381.3,2381.0,3.2078]
[1726422432804,0.81384,2381.3,2380.8,2.27730211]
[1726422433008,0.81384,2381.3,2380.9,1.09799211]
[1726422433204,0.394,2381.3,2380.9,1.51789211]
[1726422433511,0.394,2381.3,2381.0,4.72567211]
[1726422433712,0.394,2381.3,2381.0,4.30579211]
[1726422435312,0.394,2381.3,2381.1,1.09799211]
[1726422435613,0.81383,2381.3,2381.1,1.09799211]
[1726422436014,0.394,2381.3,2381.1,1.09799211]
[1726422436315,0.394,2381.3,2381.2,1.47529211]
[1726422436505,0.394,2381.3,2381.2,3.30802335]
[1726422436706,0.394,2381.3,2381.2,1.47529211]
[1726422437908,0.394,2381.3,2381.2,3.30810948]
[1726422438112,0.394,2381.3,2381.2,2.21011298]
[1726422438318,0.394,2381.3,2381.2,3.85710115]
[1726422438815,0.3914,2381.6,2381.3,0.41983]
[1726422439109,4.01977,2381.7,2381.4,4.70514624]
[1726422439314,0.41978,2381.6,2381.5,1.09844624]
[1726422440210,0.7995,2381.8,2381.5,1.82072707]
[1726422440516,1.21925,2381.8,2381.6,1.09835409]
[1726422440718,1.21925,2381.8,2381.7,1.09835409]
[1726422441813,0.7995,2381.8,2381.6,1.48705409]
[1726422442008,1.21925,2381.8,2381.6,1.48705409]
[1726422442408,0.7995,2381.8,2381.6,1.48705409]
[1726422444313,0.7995,2381.8,2381.6,0.3887]
[1726422444810,1.21924,2381.8,2381.6,0.3887]
[1726422445914,0.7995,2381.8,2381.6,0.3887]
[1726422447114,0.80291,2382.0,2381.7,3.2078]
[1726422447316,0.41971,2382.0,2381.7,3.6126]
[1726422449121,0.41973,2381.9,2381.7,3.2078]
[1726422449307,0.41973,2381.9,2381.6,0.3887]
[1726422449308,4.01973,2381.9,2381.6,0.3887]
[1726422449512,0.3975,2381.8,2381.6,0.3887]
[1726422449713,0.391,2381.7,2381.6,0.3887]
[1726422452412,0.41972,2382.0,2381.6,7.06287033]
[1726422452711,3.93791458,2382.1,2381.8,1.09837757]
[1726422452910,4.35761458,2382.1,2381.9,0.4088]
[1726422453329,4.35761458,2382.1,2382.0,0.396]
[1726422454517,1.1963,2382.2,2382.0,0.396]
[1726422454518,1.61598,2382.2,2382.0,0.396]
[1726422454709,0.41969,2382.1,2382.0,0.396]
[1726422455923,0.3797,2382.2,2382.0,1.49437757]
[1726422456111,3.6157,2382.5,2382.1,1.51832009]
[1726422456423,3.6157,2382.5,2382.2,1.09864009]
[1726422456612,3.6157,2382.5,2382.3,1.09864009]
[1726422457018,3.6157,2382.5,2382.4,0.3979]
[1726422458221,3.2078,2382.5,2382.4,1.49654009]
[1726422458422,3.2078,2382.5,2382.4,0.3979]
[1726422458625,3.2078,2382.5,2382.4,1.49654009]
[1726422458829,4.42748,2382.7,2382.4,1.49654009]
[1726422459127,1.04864,2383.5,2382.4,1.49654009]
[1726422459128,3.698,2383.1,2382.6,4.30644009]
[1726422459311,3.698,2383.1,2382.7,0.3832]
[1726422459312,4.01952,2383.1,2382.7,0.3832]
[1726422459718,4.01952,2383.1,2382.8,0.3932]
[1726422459926,1.61779,2383.2,2382.9,3.2078]
[1726422460117,0.41955,2382.9,2382.8,0.3932]
[1726422460318,3.6,2383.0,2382.7,0.3832]
[1726422460523,0.41952,2383.1,2382.8,0.3842]
[1726422460728,5.21781,2383.2,2382.8,0.3842]
[1726422461025,0.41951,2383.1,2382.8,0.3842]
[1726422461228,5.2178,2383.2,2382.8,0.3842]
[1726422461613,0.41951,2383.1,2382.8,0.3842]
[1726422462020,5.2178,2383.2,2382.8,0.3842]
[1726422463416,4.02643661,2383.3,2382.8,4.01155]
[1726422463617,0.74633437,2383.5,2383.1,3.2078]
[1726422463824,3.6,2383.2,2382.7,7.3568]
[1726422464131,1.61762,2383.1,2382.7,4.149]
[1726422464317,0.791,2383.1,2382.7,4.149]
[1726422464514,0.791,2383.1,2382.7,4.56857]
[1726422464718,0.791,2383.1,2382.9,3.2078]
[1726422464923,0.791,2383.1,2382.7,4.56857]
[1726422464924,0.791,2383.1,2382.7,4.56858]
[1726422465425,3.698,2383.4,2382.7,0.41958]
[1726422465618,3.698,2383.4,2382.6,3.9801]
[1726422465619,0.098,2383.4,2383.0,0.41953]
[1726422465926,3.6,2383.7,2383.2,3.2078]
[1726422465927,0.098,2383.7,2383.2,3.2078]
[1726422466120,1.56141198,2383.7,2383.2,3.2078]
[1726422466321,1.22472,2383.7,2383.2,3.2078]
[1726422466637,0.41942,2383.6,2383.2,3.2078]
[1726422467130,0.8053,2383.7,2383.2,3.2078]
[1726422467431,0.8053,2383.7,2383.3,0.41948]
[1726422467721,1.14503307,2383.7,2383.2,3.62728]
[1726422467919,1.14503307,2383.7,2383.3,0.41948]
[1726422468121,1.56444307,2383.7,2383.3,0.41948]
[1726422468343,1.14503307,2383.7,2383.2,3.2078]
[1726422468536,1.22471,2383.7,2383.2,3.62729]
[1726422469221,0.8053,2383.7,2383.2,3.2078]
[1726422469619,0.41943,2383.6,2383.2,3.2078]
[1726422469821,1.22471,2383.7,2383.2,3.62729]
[1726422473235,0.8053,2383.7,2383.3,0.41947]
[1726422473422,0.8053,2383.7,2383.2,3.2078]
[1726422473624,1.22471,2383.7,2383.2,3.62728]
[1726422473825,0.8053,2383.7,2383.3,0.41948]
[1726422474021,0.8053,2383.7,2383.2,3.2078]
[1726422474022,1.22471,2383.7,2383.2,3.62729]
[1726422475329,0.41944,2383.6,2383.2,3.2078]
[1726422476032,8.03252,2383.7,2383.2,3.62729]
[1726422478241,0.41943,2383.6,2383.2,3.62729]
[1726422478536,4.0131,2383.7,2383.4,0.41944]
[1726422478736,4.0131,2383.7,2383.5,0.3973]
[1726422479538,3.3058,2384.0,2383.6,4.1952]
[1726422479830,3.2078,2384.0,2383.5,3.6051]
[1726422480042,0.41939,2383.8,2383.5,0.3973]
[1726422480340,0.3887,2383.7,2383.5,0.3973]
[1726422482428,0.3887,2383.7,2383.2,3.6135]
[1726422482634,3.6,2383.5,2383.2,0.4084]
[1726422482834,0.3943,2383.4,2383.2,0.4084]
[1726422483135,0.801,2383.4,2383.2,0.4084]
[1726422483843,0.801,2383.4,2383.1,3.2078]
[1726422484136,3.6,2383.3,2383.1,3.2078]
[1726422489144,0.3957,2383.2,2383.1,3.2078]
[1726422489949,0.801,2383.4,2383.1,3.2078]
[1726422490346,0.801,2383.4,2383.2,0.4009]
[1726422492049,1.22046,2383.4,2383.2,0.4009]
[1726422492350,3.6,2383.3,2383.2,0.4009]
[1726422493150,0.801,2383.4,2383.2,0.4009]
[1726422494543,1.22046,2383.4,2383.2,0.4009]
[1726422499749,1.22046,2383.4,2383.2,0.7941]
[1726422500751,0.41949,2383.2,2383.1,1.09864009]
[1726422500956,0.41955,2382.9,2382.8,1.09864009]
[1726422501357,0.41956,2382.8,2382.7,1.64698817]
[1726422501553,0.41956,2382.8,2382.7,1.78947131]
[1726422501953,4.402,2383.0,2382.7,1.78953231]
[1726422502254,0.41955,2382.9,2382.8,1.09707909]
[1726422502445,0.41955,2382.9,2382.7,1.09707909]
[1726422502446,0.41956,2382.8,2382.7,1.09707909]
[1726422502649,7.22736,2382.8,2382.7,1.09707909]
[1726422502851,0.41958,2382.7,2382.6,1.09707909]
[1726422503055,4.01958,2382.7,2382.6,1.09707909]
[1726422503357,8.21638,2382.7,2382.6,1.09707909]
[1726422503957,0.4196,2382.6,2382.5,1.09707909]
[1726422504149,0.4196,2382.6,2382.4,1.09707909]
[1726422504150,0.41962,2382.5,2382.4,1.09707909]
[1726422504351,4.43422,2382.5,2382.4,1.09707909]
[1726422506356,4.43422,2382.5,2382.3,1.09707909]
[1726422506357,4.43423,2382.5,2382.3,1.09707909]
[1726422506753,0.41963,2382.4,2382.3,1.09707909]
[1726422508659,4.43423,2382.5,2382.3,1.09707909]
[1726422509255,4.43423,2382.5,2382.2,1.48197909]
[1726422510767,4.43423,2382.5,2382.2,0.3849]
[1726422516361,0.41964,2382.4,2382.2,0.3849]
[1726422518369,4.132,2383.3,2382.2,0.3849]
[1726422518370,0.4196,2382.7,2382.2,0.3849]
[1726422518568,4.35467,2383.0,2382.2,0.3849]
[1726422518569,0.4196,2382.6,2382.3,3.2078]
[1726422518770,0.4196,2382.6,2382.4,0.4176]
[1726422519870,0.41959,2382.7,2382.4,0.4176]
[1726422520470,7.22734,2383.0,2382.6,0.41959]
[1726422520874,0.41955,2382.9,2382.7,0.3794]
[1726422521860,3.62734,2383.0,2382.7,0.3794]
[1726422522064,7.22734,2383.0,2382.7,0.3794]
[1726422522466,7.22734,2383.0,2382.8,0.3782]
[1726422522872,3.6,2383.2,2382.9,0.4107]
[1726422523064,4.0195,2383.2,2382.9,0.4107]
[1726422526172,3.2078,2383.3,2383.0,0.41952]
[1726422526374,3.2078,2383.3,2382.9,1.92730909]
[1726422526775,3.6,2383.2,2382.9,1.09707909]
[1726422526974,3.6,2383.2,2382.8,1.47527909]
[1726422526975,4.7952,2383.2,2382.8,1.47527909]
[1726422527385,0.4034,2383.1,2382.8,1.47527909]
[1726422527775,0.4034,2383.1,2382.8,1.89483909]
[1726422527975,0.4034,2383.1,2382.8,1.47527909]
[1726422528184,0.4034,2383.1,2382.9,1.09707909]
[1726422528893,4.3757,2383.2,2382.9,1.09707909]
[1726422529291,3.9983,2383.2,2383.0,1.09707909]
[1726422529588,3.62729,2383.3,2382.8,2.44474817]
[1726422529589,3.2078,2383.3,2383.1,1.09707909]
[1726422529798,3.2078,2383.3,2383.2,0.7903]
[1726422529994,3.3058,2383.7,2383.2,3.9981]
[1726422530202,3.62721,2383.7,2383.3,0.41947]
[1726422530491,3.62721,2383.7,2383.3,1.51654909]
[1726422530694,0.41942,2383.6,2383.3,1.09707909]
[1726422530892,3.62722,2383.7,2383.3,1.51655909]
[1726422531097,0.41942,2383.6,2383.3,1.51655909]
[1726422531901,3.62721,2383.7,2383.3,1.51655909]
[1726422532089,0.41943,2383.6,2383.3,1.51655909]
[1726422532394,3.2078,2383.7,2383.3,1.51655909]
[1726422532395,3.62721,2383.7,2383.3,1.51653909]
[1726422533186,0.41941,2383.7,2383.3,1.51653909]
[1726422534092,0.83230277,2383.9,2383.3,1.09707909]
[1726422534093,4.01944,2383.6,2383.3,1.09707909]
[1726422534294,4.42124,2383.6,2383.3,1.09707909]
[1726422534998,4.42124,2383.6,2383.2,4.79689]
[1726422535400,4.42124,2383.6,2383.2,1.58909]
[1726422535896,4.0018,2383.6,2383.3,0.41947]
[1726422536793,4.0018,2383.6,2383.2,4.3774]
[1726422536996,6.8078,2383.8,2383.2,4.3774]
[1726422537198,6.8078,2383.8,2383.2,5.47447909]
[1726422537199,3.6,2383.7,2383.2,5.47447909]
[1726422537499,3.6,2383.7,2383.2,4.3774]
[1726422537500,0.41945,2383.5,2383.2,4.3774]
[1726422537700,0.4131,2383.6,2383.2,4.79689]
[1726422537701,0.83253,2383.6,2383.2,4.79689]
[1726422538090,0.83253,2383.6,2383.3,0.41948]
[1726422538601,0.83253,2383.6,2383.2,4.79688]
[1726422539004,0.83254,2383.6,2383.2,4.79688]
[1726422539398,0.83254,2383.6,2383.2,4.41758]
[1726422540499,0.83254,2383.6,2383.0,1.09707909]
[1726422540500,3.6,2383.3,2383.0,1.09707909]
[1726422540698,3.6,2383.3,2382.8,4.85478817]
[1726422540699,1.1797,2383.2,2382.8,3.2078]
[1726422540899,1.1797,2383.2,2382.9,0.41955]
[1726422541299,1.59919,2383.2,2382.8,3.62735]
[1726422541497,1.59919,2383.2,2382.8,3.2078]
[1726422541498,3.6,2383.0,2382.8,3.2078]
[1726422541899,1.5992,2383.2,2382.8,3.62736]
[1726422542098,1.5992,2383.2,2382.9,1.09707909]
[1726422542407,0.41953,2383.0,2382.8,4.30487909]
[1726422542598,4.01952,2383.1,2382.8,4.30487909]
[1726422543595,4.01952,2383.1,2382.8,1.09707909]
[1726422543596,0.41955,2382.9,2382.8,1.09707909]
[1726422543799,0.41955,2382.9,2382.7,0.4046]
[1726422543800,4.01955,2382.9,2382.7,1.09707909]
[1726422544102,0.80507,2382.8,2382.6,1.09707909]
[1726422544304,4.3769,2382.7,2382.5,1.09707909]
[1726422544803,3.6,2382.6,2382.5,1.09707909]
[1726422545011,3.6,2382.6,2382.1,5.64027909]
[1726422545012,0.41962,2382.5,2382.1,5.64027909]
[1726422545206,6.8078,2382.6,2382.1,1.09707909]
[1726422545207,3.6,2382.2,2382.1,1.09707909]
[1726422545408,3.6,2382.2,2382.0,1.09707909]
[1726422545712,0.3875,2382.1,2382.0,1.09707909]
[1726422549803,3.6,2382.2,2382.0,1.09707909]
[1726422552506,0.3855,2382.3,2382.0,1.09707909]
[1726422553211,0.3886,2382.5,2382.2,3.62747]
[1726422553518,0.80899,2382.7,2382.4,1.09707909]
[1726422553814,0.4196,2382.6,2382.4,1.09707909]
[1726422554010,3.9894,2382.7,2382.3,1.90077909]
[1726422554211,0.41962,2382.5,2382.3,0.8037]
[1726422555318,4.01961,2382.6,2382.3,0.8037]
[1726422555505,4.01961,2382.6,2382.3,1.90077909]
[1726422557620,0.80899,2382.7,2382.3,1.90077909]
[1726422557813,0.41959,2382.7,2382.4,1.09707909]
[1726422558412,0.4196,2382.6,2382.4,1.09707909]
[1726422558710,0.41959,2382.7,2382.4,1.09707909]
[1726422559523,0.41959,2382.7,2382.5,1.09707909]
[1726422564216,4.78987,2382.8,2382.5,1.09707909]
[1726422564422,0.41959,2382.7,2382.5,1.09707909]
[1726422565922,4.78987,2382.8,2382.5,1.09707909]
[1726422566324,0.41959,2382.7,2382.5,1.09707909]
[1726422566622,0.41959,2382.7,2382.4,1.09707909]
[1726422567122,4.3703,2382.8,2382.4,1.51670909]
[1726422567123,4.78987,2382.8,2382.4,1.51670909]
[1726422567324,4.78987,2382.8,2382.4,1.09707909]
[1726422567631,0.41958,2382.7,2382.4,1.09707909]
[1726422568415,3.6,2382.6,2382.3,1.90077909]
[1726422568620,0.4048,2382.5,2382.3,1.90077909]
[1726422569016,0.3897,2382.4,2382.3,1.90077909]
[1726422569528,0.3897,2382.4,2382.3,0.8037]
[1726422570224,8.60694,2382.4,2382.1,1.09707909]
[1726422570531,0.386,2382.3,2382.0,5.13847909]
[1726422570718,0.386,2382.3,2382.0,4.71877909]
[1726422571329,0.386,2382.3,2382.0,5.13847909]
[1726422571525,4.03223,2382.5,2382.1,0.41968]
[1726422571526,0.4048,2382.5,2382.1,0.41968]
[1726422571826,0.4048,2382.5,2382.2,1.09707909]
[1726422573034,0.4048,2382.5,2382.3,0.4124]
[1726422574330,0.4048,2382.5,2382.3,3.6202]
[1726422576931,0.379,2382.7,2382.3,4.71727909]
[1726422577127,0.3909,2382.8,2382.5,0.41961]
[1726422577322,0.3909,2382.8,2382.6,3.2078]
[1726422578031,8.02554,2383.0,2382.7,0.3956]
[1726422578032,3.2078,2383.0,2382.7,0.3956]
[1726422578229,0.113,2383.3,2382.8,2.31143909]
[1726422578230,4.3942,2383.3,2382.8,2.31143909]
[1726422578423,0.4195,2383.2,2382.8,2.31143909]
[1726422578631,4.3942,2383.3,2382.9,0.41955]
[1726422578833,3.9985,2383.3,2382.9,1.51662909]
[1726422579137,3.6005,2383.3,2383.0,1.51660909]
[1726422579333,3.6005,2383.3,2383.1,0.3956]
[1726422579736,3.6005,2383.3,2383.2,0.3991]
[1726422579934,0.3927,2383.3,2383.2,0.3991]
[1726422581931,0.3927,2383.3,2383.1,1.49267909]
[1726422582539,3.6,2383.4,2383.1,1.49267909]
[1726422582835,4.0001,2383.4,2383.1,1.49267909]
[1726422583538,4.41956,2383.4,2383.1,1.49267909]
[1726422585140,4.41956,2383.4,2383.2,1.09707909]
[1726422585737,4.41956,2383.4,2383.1,1.49267909]
[1726422586539,3.6,2383.2,2383.1,1.09707909]
[1726422586744,3.6,2383.2,2383.0,2.04608817]
[1726422586745,4.01949,2383.2,2383.0,1.09707909]
[1726422586946,0.8267,2383.1,2383.0,1.09707909]
[1726422587136,0.8267,2383.1,2382.7,0.7844]
[1726422587336,0.8267,2383.1,2382.7,1.20398]
[1726422587532,0.8267,2383.1,2382.7,2.30105909]
[1726422587937,0.8267,2383.1,2382.7,1.20398]
[1726422588146,0.8267,2383.1,2382.7,0.7844]
[1726422588339,0.8267,2383.1,2382.7,1.88147909]
[1726422588839,0.8267,2383.1,2382.7,0.7844]
[1726422589240,0.8267,2383.1,2382.7,1.20398]
[1726422589436,0.8267,2383.1,2382.7,2.30105909]
[1726422591440,1.24621,2383.1,2382.7,2.30105909]
[1726422591647,0.8267,2383.1,2382.7,2.30105909]
[1726422592044,0.8267,2383.1,2382.7,1.88147909]
[1726422592247,1.24621,2383.1,2382.7,2.30104909]
[1726422592441,1.24621,2383.1,2382.8,1.09707909]
[1726422592742,1.24621,2383.1,2382.7,2.30104909]
[1726422595254,1.24621,2383.1,2382.9,1.64698817]
[1726422595441,1.24621,2383.1,2383.0,1.78071201]
[1726422596148,0.8267,2383.1,2383.0,1.78071201]
[1726422596649,4.0195,2383.2,2383.0,1.78071201]
[1726422596853,4.0195,2383.2,2382.9,1.64698817]
[1726422596854,4.0195,2383.2,2383.1,1.09758136]
[1726422597544,1.229,2383.4,2383.0,2.06651817]
[1726422597545,5.24847,2383.4,2383.0,2.06651817]
[1726422597750,5.24847,2383.4,2383.2,1.09765051]
[1726422598246,9.44447,2383.4,2383.2,1.09765051]
[1726422599354,9.44447,2383.4,2383.1,1.89555051]
[1726422599664,5.24847,2383.4,2383.1,1.89555051]
[1726422601255,3.53871488,2383.5,2383.2,1.51714051]
[1726422601256,3.2078,2383.5,2383.2,1.51714051]
[1726422601454,3.2078,2383.5,2383.3,1.47625051]
[1726422602256,3.6,2383.4,2383.3,1.09765051]
[1726422602562,4.80287,2383.4,2383.2,1.09765051]
[1726422602860,3.9807,2383.3,2383.2,1.09765051]
[1726422603252,4.40018,2383.3,2383.2,1.09765051]
[1726422603562,8.59618,2383.3,2383.1,1.09765051]
[1726422603763,4.40018,2383.3,2383.1,1.09765051]
[1726422604148,3.9807,2383.3,2383.1,1.09765051]
[1726422604451,4.40019,2383.3,2383.1,1.09765051]
[1726422607864,4.40019,2383.3,2383.2,1.09765051]
[1726422608163,4.40019,2383.3,2383.1,1.09765051]
[1726422610056,3.9807,2383.3,2383.1,1.09765051]
[1726422610360,4.40018,2383.3,2383.0,1.09765051]
[1726422613564,4.40018,2383.3,2383.1,1.09765051]
[1726422613768,4.40018,2383.3,2383.0,1.09765051]
[1726422614364,3.9807,2383.3,2383.1,1.09765051]
[1726422614677,0.7834,2383.4,2383.1,1.51715051]
[1726422614963,0.3978,2383.4,2383.2,0.795]
[1726422615475,0.3978,2383.4,2383.3,0.4097]
[1726422616474,0.81726,2383.4,2383.3,0.4097]
[1726422617366,0.81726,2383.4,2383.3,1.50735051]
[1726422617764,4.41726,2383.4,2383.3,1.09765051]
[1726422618975,3.9978,2383.4,2383.3,1.09765051]
[1726422619367,3.9978,2383.4,2383.3,1.78300253]
[1726422620564,3.9978,2383.4,2383.3,3.4299907]
[1726422620774,3.9978,2383.4,2383.3,1.78300253]
[1726422620982,4.41726,2383.4,2383.3,1.78344027]
[1726422621170,8.61326,2383.4,2383.3,1.78344027]
[1726422621476,8.61326,2383.4,2383.3,3.43042844]
[1726422623478,8.61326,2383.4,2383.3,1.78344027]
[1726422624465,8.61326,2383.4,2383.3,1.10084411]
[1726422624466,3.9978,2383.4,2383.3,1.10084411]
[1726422625375,4.41726,2383.4,2383.3,1.10084411]
[1726422625576,4.41726,2383.4,2383.3,1.62554288]
[1726422627269,4.41726,2383.4,2383.3,1.62554341]
[1726422627878,8.61326,2383.4,2383.3,1.62554341]
[1726422628985,4.41726,2383.4,2383.3,1.62554341]
[1726422629779,4.41726,2383.4,2383.3,1.10084411]
[1726422629982,3.9978,2383.4,2383.3,1.62554394]
[1726422630477,0.8075,2383.6,2383.3,1.62554394]
[1726422630672,1.2038,2383.6,2383.4,1.10084411]
[1726422630873,1.2038,2383.6,2383.4,2.02580687]
[1726422631073,1.2038,2383.6,2383.4,1.50114411]
[1726422631477,4.01944,2383.5,2383.4,1.10084411]
[1726422632075,4.01944,2383.5,2383.3,1.10084411]
[1726422632280,3.92864867,2383.8,2383.3,1.10084411]
[1726422632484,3.6,2383.8,2383.6,1.65126617]
[1726422632691,3.6,2383.8,2383.7,2.61169175]
[1726422632984,3.6,2383.8,2383.7,3.13630402]
[1726422633180,3.6,2383.8,2383.7,2.61169175]
[1726422633581,3.6,2383.8,2383.7,4.26180736]
[1726422633878,3.2078,2383.9,2383.7,2.61169175]
[1726422634078,3.2078,2383.9,2383.8,3.45188313]
[1726422635089,3.2078,2383.9,2383.8,3.44953073]
[1726422636283,7.22717,2383.9,2383.8,3.44953073]
[1726422636484,7.22717,2383.9,2383.8,1.09933964]
[1726422636485,11.42237,2383.9,2383.8,1.09933964]
[1726422636685,17.42237,2383.9,2383.8,1.09933964]
[1726422636895,0.41939,2383.8,2383.7,1.09933964]
[1726422637215,0.41939,2383.8,2383.5,1.65009138]
[1726422637216,0.41941,2383.7,2383.5,1.65009138]
[1726422637390,0.41941,2383.7,2383.6,1.79873715]
[1726422637896,4.61461,2383.7,2383.6,1.79873715]
[1726422638487,4.1952,2383.7,2383.6,1.79873715]
[1726422638691,4.1952,2383.7,2383.6,3.44882853]
[1726422638989,5.2139,2383.8,2383.6,3.44882853]
[1726422639190,5.2139,2383.8,2383.7,1.09935877]
[1726422639698,9.4091,2383.8,2383.3,2.31265877]
[1726422639892,3.6,2383.6,2383.3,2.31265877]
[1726422642901,3.6,2383.6,2383.3,1.91345877]
[1726422642902,3.6,2383.4,2383.3,1.91345877]
[1726422643399,3.6,2383.4,2383.3,2.43813322]
[1726422643597,3.6,2383.4,2383.3,1.91345877]
[1726422643800,3.6,2383.4,2383.3,2.43811639]
[1726422644000,3.6,2383.4,2383.3,1.91345877]
[1726422644397,3.6,2383.6,2383.3,1.91345877]
[1726422644708,3.6,2383.6,2383.3,2.43811928]
[1726422645205,3.6,2383.6,2383.4,0.3925]
[1726422646304,0.41945,2383.5,2383.3,1.91345877]
[1726422646497,4.0083,2383.4,2383.3,1.91345877]
[1726422646690,3.6,2383.6,2383.3,2.33293877]
[1726422647002,0.7479498,2383.8,2383.4,0.3925]
[1726422647003,5.5591498,2383.8,2383.4,0.3925]
[1726422647197,5.5591498,2383.8,2383.4,1.49185877]
[1726422647407,0.41941,2383.7,2383.4,1.49185877]
[1726422647607,0.41941,2383.7,2383.5,3.44898111]
[1726422647795,0.41941,2383.7,2383.6,1.79888973]
[1726422648901,5.29327,2384.3,2383.6,1.79888973]
[1726422648902,0.21,2384.7,2383.8,0.41939]
[1726422649092,3.2078,2385.3,2384.6,4.30680691]
[1726422649093,3.81,2385.1,2384.6,4.30680691]
[1726422649293,3.6,2385.1,2385.0,1.64851037]
[1726422649501,3.6,2385.1,2385.0,1.09724713]
[1726422649707,8.21197,2385.1,2384.8,1.09724713]
[1726422649899,3.6,2384.9,2384.8,1.09724713]
[1726422650403,8.6157,2384.9,2384.7,2.89556495]
[1726422650604,4.1936,2384.8,2384.7,1.79831782]
[1726422651502,10.1936,2384.8,2384.7,1.79831782]
[1726422652107,4.61281,2384.8,2384.7,1.79831782]
[1726422652303,10.61281,2384.8,2384.7,1.79831782]
[1726422652801,10.1936,2384.8,2384.7,1.79831782]
[1726422653108,10.61281,2384.8,2384.4,1.09724713]
[1726422653302,10.61281,2384.8,2384.2,4.85631037]
[1726422653303,3.6,2384.6,2384.3,1.09724713]
[1726422653505,0.8061,2384.5,2384.3,1.09724713]
[1726422653702,3.6,2384.4,2384.3,1.09724713]
[1726422653907,7.7936,2384.4,2384.2,4.30504713]
[1726422654105,3.6,2384.4,2384.1,1.09724713]
[1726422654705,3.6,2384.4,2384.0,3.2078]
[1726422659417,3.94040615,2384.4,2384.0,3.2078]
[1726422659611,1.22537,2384.5,2384.0,3.2078]
[1726422659612,0.8061,2384.5,2384.0,3.2078]
[1726422659828,1.22538,2384.5,2384.0,3.2078]
[1726422660631,4.01933,2384.2,2383.8,0.3874]
[1726422660828,1.1523,2384.1,2383.8,0.80679]
[1726422661025,1.1523,2384.1,2383.9,3.2078]
[1726422662332,0.33476557,2384.5,2383.9,3.62717]
[1726422662527,0.33476557,2384.5,2384.0,0.7637]
[1726422662528,0.3924,2384.4,2384.0,0.7637]
[1726422662831,0.7787,2384.5,2384.2,3.2078]
[1726422663235,0.7787,2384.5,2384.2,3.5974]
[1726422663530,1.19797,2384.5,2384.2,0.3896]
[1726422664137,3.6,2384.3,2384.2,0.3896]
[1726422664332,3.6,2384.3,2384.0,0.7637]
[1726422664633,0.4035,2384.2,2384.0,0.7637]
[1726422666227,0.4035,2384.2,2383.9,4.72184713]
[1726422666428,0.7953,2384.1,2383.9,4.72184713]
[1726422666834,0.7953,2384.1,2383.9,3.6246]
[1726422667135,4.81464,2384.1,2383.9,0.4168]
[1726422667429,4.81464,2384.1,2383.7,1.88824713]
[1726422667430,4.81465,2384.1,2383.7,1.88824713]
[1726422667635,4.3953,2384.1,2383.7,1.88824713]
[1726422667828,4.3953,2384.1,2383.7,0.791]
[1726422667829,0.41936,2384.0,2383.7,0.791]
[1726422668227,4.3953,2384.1,2383.6,4.30504713]
[1726422668228,4.01937,2383.9,2383.6,4.30504713]
[1726422668426,0.7953,2384.1,2383.7,1.09724713]
[1726422668427,3.6,2384.1,2383.7,1.09724713]
[1726422668732,7.22711,2384.3,2383.8,2.30762713]
[1726422668931,3.6,2384.3,2383.9,0.3866]
[1726422669130,3.6,2384.3,2383.9,3.5944]
[1726422669334,3.6,2384.3,2383.9,4.69164713]
[1726422669531,3.9300214,2384.3,2383.9,5.11101713]
[1726422669739,3.9300214,2384.3,2383.9,4.69164713]
[1726422670034,3.9300214,2384.3,2383.9,3.5944]
[1726422670035,4.3493214,2384.3,2383.9,3.5944]
[1726422670231,3.9300214,2384.3,2383.9,4.01377]
[1726422670540,3.9300214,2384.3,2383.9,4.69164713]
[1726422670929,4.3493314,2384.3,2383.9,4.69164713]
[1726422671330,3.9300214,2384.3,2383.9,3.5944]
[1726422671840,0.41933,2384.2,2383.9,3.5944]
[1726422672529,0.41934,2384.1,2383.9,3.5944]
[1726422674236,3.9300214,2384.3,2383.9,3.5944]
[1726422674237,0.41932,2384.2,2383.9,3.5944]
[1726422674429,0.41934,2384.1,2383.9,3.5944]
[1726422675448,0.41934,2384.1,2383.9,4.69164713]
[1726422675737,0.41934,2384.1,2383.9,3.5944]
[1726422676845,0.41939,2383.8,2383.7,1.09724713]
[1726422677741,1.207,2384.0,2383.6,3.2078]
[1726422677942,0.41937,2383.9,2383.6,3.2078]
[1726422682041,0.7965,2384.0,2383.6,3.2078]
[1726422682241,0.41938,2383.9,2383.6,3.2078]
[1726422684238,0.41939,2383.8,2383.6,3.2078]
[1726422684439,0.83089,2383.8,2383.6,3.2078]
[1726422684843,0.83089,2383.8,2383.7,1.09724713]
[1726422685036,0.4115,2383.8,2383.7,1.09724713]
[1726422685742,8.62609,2383.8,2383.7,1.09724713]
[1726422685944,0.41942,2383.6,2383.5,1.49914713]
[1726422686744,1.19232,2383.6,2383.5,1.09724713]
[1726422686949,4.9681,2383.6,2383.4,1.09724713]
[1726422687138,1.19233,2383.6,2383.4,1.09724713]
[1726422688842,0.41944,2383.5,2383.4,1.09724713]
[1726422689746,8.21464,2383.5,2383.4,1.09724713]
[1726422690047,8.21464,2383.5,2383.3,1.09724713]
[1726422690235,4.01944,2383.5,2383.3,1.09724713]
[1726422690440,0.41946,2383.4,2383.3,1.09724713]
[1726422690750,0.41946,2383.4,2383.3,1.80733603]
[1726422690945,0.81286,2383.4,2383.3,1.80733603]
[1726422691145,0.81286,2383.4,2383.3,1.09703014]
[1726422691347,0.81286,2383.4,2383.2,2.05861037]
[1726422691348,0.3934,2383.4,2383.2,1.50713014]
[1726422692544,0.81287,2383.4,2383.2,1.50713014]
[1726422692749,4.02067,2383.4,2383.2,1.50713014]
[1726422692947,4.02067,2383.4,2383.2,0.4101]
[1726422693142,4.02067,2383.4,2383.2,1.50713014]
[1726422693947,0.81287,2383.4,2383.1,1.09703014]
[1726422694344,0.3934,2383.4,2383.1,1.09703014]